{"text_format":"3","workbook":"xlsx","n_sheets":3,"sheets":["Начало","Бюджет","Данные"],"not_rendered":{"charts":1,"defined_names":5},"read":"whole","date_system":"1900"}

{"sheet":"Начало","index":0,"n_rows":7,"n_cols":2,"rows_kept":7}
[null,"О шаблоне"]
[null,"Отслеживайте свои ежемесячные расходы и сбережения, используя этот шаблон."]
[null,"Введите сумму расходов в таблицу и ежемесячный доход для расчета сбережений."]
[null,"Кольцевая диаграмма, показывающая расходы и сбережения, обновляется автоматически."]
[null,"Примечание:"]
[null,"Дополнительные инструкции были указаны в столбце A на листе БЮДЖЕТ. Этот текст был намеренно скрыт. Чтобы удалить текст, выберите столбец A, а затем нажмите УДАЛИТЬ. Чтобы отобразить текст, выберите столбец A, а затем измените цвет шрифта."]
[null,"Чтобы узнать больше о таблице, нажмите SHIFT, а затем F10 в таблице, выберите параметр ТАБЛИЦА, а затем выберите ЗАМЕЩАЮЩИЙ ТЕКСТ."]

{"sheet":"Бюджет","index":1,"n_rows":23,"n_cols":7,"rows_kept":23,"merged":[[0,1,0,2],[0,3,0,6],[1,2,4,4]]}
["Создайте колесо бюджета на этом листе. Заголовок рабочего листа находится в ячейке справа, а подсказка — в ячейке D1. Другие полезные инструкции о том, как использовать этот лист, находятся в ячейках в этой колонке. Стрелка вниз, чтобы начать.","ДИАГРАММА БЮДЖЕТА",null,"Заполните таблицу в этом шаблоне. График рассчитает ваши ежемесячные расходы  в отношении к ежемесячному доходу. Он также рассчитает проценты, чтобы показать вам, сколько вы сэкономите/ сэкономили."]
["Ежемесячная метка дохода находится в ячейке справа. Кольцевая диаграмма показывает расходы и сбережения в ячейке C2 и метку суммы сбережений в ячейке G2.","Ежемесячный доход","В этой ячейке находится кольцевая диаграмма, отображающая затраты и сбережения.",{"$nulls":3},"Сумма сбережений"]
["Введите ежемесячный доход в ячейку справа. Сумма сбережений рассчитывается автоматически в ячейке G3. Следующая инструкция находится в ячейке A6.",{"v":5738,"d":"5,738 ₽"},{"$nulls":4},{"$f":"Сбережения","v":{"v":2777,"d":"2,777 ₽"}}]
[{"$nulls":6},"Значение, рассчитанное автоматически"]
[]
["Введите данные в таблицу расходов, начиная с ячейки справа.","Расходы","Категория","Сумма","Частота выплаты","Ежемесячная сумма","% от общей суммы"]
[null,"Страхование","Транспорт",{"v":300,"d":"300 ₽"},"Каждые 6 месяцев",{"$f":"IF(Расходы[[#This Row],[Сумма]]>0,IF(Расходы[[#This Row],[Частота выплаты]]<>\"\",ROUND(IF(Расходы[[#This Row],[Частота выплаты]]=\"Ежемесячно\",Расходы[Сумма],IF(Расходы[[#This Row],[Частота выплаты]]=\"Еженедельно\",Расходы[[#This Row],[Сумма]]*4,IF(Расходы[[#This Row],[Частота выплаты]]=\"Ежеквартально\",Расходы[[#This Row],[Сумма]]/3,IF(Расходы[[#This Row],[Частота выплаты]]=\"Каждые 6 месяцев\",Расходы[[#This Row],[Сумма]]/6,IF(Расходы[[#This Row],[Частота выплаты]]=\"Ежегодно\",Расходы[[#This Row],[Сумма]]/12,IF(Расходы[[#This Row],[Частота выплаты]]=\"Раз в две недели\",Расходы[[#This Row],[Сумма]]*2,IF(Расходы[[#This Row],[Частота выплаты]]=\"Раз в два месяца\",Расходы[[#This Row],[Сумма]]/2,\"\"))))))),0),\"\"),\"\")","v":{"v":50,"d":"50 ₽"}},{"$f":"IF(Расходы[[#This Row],[Ежемесячная сумма]]<>\"\",Расходы[[#This Row],[Ежемесячная сумма]]/Приход,\"\")","v":{"v":0.00871383757406762,"d":"1%"}}]
[null,"Газ","Транспорт",{"v":25,"d":"25 ₽"},"Еженедельно",{"$f":"IF(Расходы[[#This Row],[Сумма]]>0,IF(Расходы[[#This Row],[Частота выплаты]]<>\"\",ROUND(IF(Расходы[[#This Row],[Частота выплаты]]=\"Ежемесячно\",Расходы[Сумма],IF(Расходы[[#This Row],[Частота выплаты]]=\"Еженедельно\",Расходы[[#This Row],[Сумма]]*4,IF(Расходы[[#This Row],[Частота выплаты]]=\"Ежеквартально\",Расходы[[#This Row],[Сумма]]/3,IF(Расходы[[#This Row],[Частота выплаты]]=\"Каждые 6 месяцев\",Расходы[[#This Row],[Сумма]]/6,IF(Расходы[[#This Row],[Частота выплаты]]=\"Ежегодно\",Расходы[[#This Row],[Сумма]]/12,IF(Расходы[[#This Row],[Частота выплаты]]=\"Раз в две недели\",Расходы[[#This Row],[Сумма]]*2,IF(Расходы[[#This Row],[Частота выплаты]]=\"Раз в два месяца\",Расходы[[#This Row],[Сумма]]/2,\"\"))))))),0),\"\"),\"\")","v":{"v":100,"d":"100 ₽"}},{"$f":"IF(Расходы[[#This Row],[Ежемесячная сумма]]<>\"\",Расходы[[#This Row],[Ежемесячная сумма]]/Приход,\"\")","v":{"v":0.01742767514813524,"d":"2%"}}]
[null,"Оплата автомобиля","Транспорт",{"v":200,"d":"200 ₽"},"Ежемесячно",{"$f":"IF(Расходы[[#This Row],[Сумма]]>0,IF(Расходы[[#This Row],[Частота выплаты]]<>\"\",ROUND(IF(Расходы[[#This Row],[Частота выплаты]]=\"Ежемесячно\",Расходы[Сумма],IF(Расходы[[#This Row],[Частота выплаты]]=\"Еженедельно\",Расходы[[#This Row],[Сумма]]*4,IF(Расходы[[#This Row],[Частота выплаты]]=\"Ежеквартально\",Расходы[[#This Row],[Сумма]]/3,IF(Расходы[[#This Row],[Частота выплаты]]=\"Каждые 6 месяцев\",Расходы[[#This Row],[Сумма]]/6,IF(Расходы[[#This Row],[Частота выплаты]]=\"Ежегодно\",Расходы[[#This Row],[Сумма]]/12,IF(Расходы[[#This Row],[Частота выплаты]]=\"Раз в две недели\",Расходы[[#This Row],[Сумма]]*2,IF(Расходы[[#This Row],[Частота выплаты]]=\"Раз в два месяца\",Расходы[[#This Row],[Сумма]]/2,\"\"))))))),0),\"\"),\"\")","v":{"v":200,"d":"200 ₽"}},{"$f":"IF(Расходы[[#This Row],[Ежемесячная сумма]]<>\"\",Расходы[[#This Row],[Ежемесячная сумма]]/Приход,\"\")","v":{"v":0.03485535029627048,"d":"3%"}}]
[null,"Ипотека","Дом",{"v":1600,"d":"1,600 ₽"},"Ежемесячно",{"$f":"IF(Расходы[[#This Row],[Сумма]]>0,IF(Расходы[[#This Row],[Частота выплаты]]<>\"\",ROUND(IF(Расходы[[#This Row],[Частота выплаты]]=\"Ежемесячно\",Расходы[Сумма],IF(Расходы[[#This Row],[Частота выплаты]]=\"Еженедельно\",Расходы[[#This Row],[Сумма]]*4,IF(Расходы[[#This Row],[Частота выплаты]]=\"Ежеквартально\",Расходы[[#This Row],[Сумма]]/3,IF(Расходы[[#This Row],[Частота выплаты]]=\"Каждые 6 месяцев\",Расходы[[#This Row],[Сумма]]/6,IF(Расходы[[#This Row],[Частота выплаты]]=\"Ежегодно\",Расходы[[#This Row],[Сумма]]/12,IF(Расходы[[#This Row],[Частота выплаты]]=\"Раз в две недели\",Расходы[[#This Row],[Сумма]]*2,IF(Расходы[[#This Row],[Частота выплаты]]=\"Раз в два месяца\",Расходы[[#This Row],[Сумма]]/2,\"\"))))))),0),\"\"),\"\")","v":{"v":1600,"d":"1,600 ₽"}},{"$f":"IF(Расходы[[#This Row],[Ежемесячная сумма]]<>\"\",Расходы[[#This Row],[Ежемесячная сумма]]/Приход,\"\")","v":{"v":0.27884280237016384,"d":"28%"}}]
[null,"Кабель","Дом",{"v":60,"d":"60 ₽"},"Ежемесячно",{"$f":"IF(Расходы[[#This Row],[Сумма]]>0,IF(Расходы[[#This Row],[Частота выплаты]]<>\"\",ROUND(IF(Расходы[[#This Row],[Частота выплаты]]=\"Ежемесячно\",Расходы[Сумма],IF(Расходы[[#This Row],[Частота выплаты]]=\"Еженедельно\",Расходы[[#This Row],[Сумма]]*4,IF(Расходы[[#This Row],[Частота выплаты]]=\"Ежеквартально\",Расходы[[#This Row],[Сумма]]/3,IF(Расходы[[#This Row],[Частота выплаты]]=\"Каждые 6 месяцев\",Расходы[[#This Row],[Сумма]]/6,IF(Расходы[[#This Row],[Частота выплаты]]=\"Ежегодно\",Расходы[[#This Row],[Сумма]]/12,IF(Расходы[[#This Row],[Частота выплаты]]=\"Раз в две недели\",Расходы[[#This Row],[Сумма]]*2,IF(Расходы[[#This Row],[Частота выплаты]]=\"Раз в два месяца\",Расходы[[#This Row],[Сумма]]/2,\"\"))))))),0),\"\"),\"\")","v":{"v":60,"d":"60 ₽"}},{"$f":"IF(Расходы[[#This Row],[Ежемесячная сумма]]<>\"\",Расходы[[#This Row],[Ежемесячная сумма]]/Приход,\"\")","v":{"v":0.010456605088881143,"d":"1%"}}]
[null,"Вечер кино","Развлечения",{"v":70,"d":"70 ₽"},"Ежемесячно",{"$f":"IF(Расходы[[#This Row],[Сумма]]>0,IF(Расходы[[#This Row],[Частота выплаты]]<>\"\",ROUND(IF(Расходы[[#This Row],[Частота выплаты]]=\"Ежемесячно\",Расходы[Сумма],IF(Расходы[[#This Row],[Частота выплаты]]=\"Еженедельно\",Расходы[[#This Row],[Сумма]]*4,IF(Расходы[[#This Row],[Частота выплаты]]=\"Ежеквартально\",Расходы[[#This Row],[Сумма]]/3,IF(Расходы[[#This Row],[Частота выплаты]]=\"Каждые 6 месяцев\",Расходы[[#This Row],[Сумма]]/6,IF(Расходы[[#This Row],[Частота выплаты]]=\"Ежегодно\",Расходы[[#This Row],[Сумма]]/12,IF(Расходы[[#This Row],[Частота выплаты]]=\"Раз в две недели\",Расходы[[#This Row],[Сумма]]*2,IF(Расходы[[#This Row],[Частота выплаты]]=\"Раз в два месяца\",Расходы[[#This Row],[Сумма]]/2,\"\"))))))),0),\"\"),\"\")","v":{"v":70,"d":"70 ₽"}},{"$f":"IF(Расходы[[#This Row],[Ежемесячная сумма]]<>\"\",Расходы[[#This Row],[Ежемесячная сумма]]/Приход,\"\")","v":{"v":0.012199372603694667,"d":"1%"}}]
[null,"Кроссовки","Разн.",{"v":300,"d":"300 ₽"},"Ежегодно",{"$f":"IF(Расходы[[#This Row],[Сумма]]>0,IF(Расходы[[#This Row],[Частота выплаты]]<>\"\",ROUND(IF(Расходы[[#This Row],[Частота выплаты]]=\"Ежемесячно\",Расходы[Сумма],IF(Расходы[[#This Row],[Частота выплаты]]=\"Еженедельно\",Расходы[[#This Row],[Сумма]]*4,IF(Расходы[[#This Row],[Частота выплаты]]=\"Ежеквартально\",Расходы[[#This Row],[Сумма]]/3,IF(Расходы[[#This Row],[Частота выплаты]]=\"Каждые 6 месяцев\",Расходы[[#This Row],[Сумма]]/6,IF(Расходы[[#This Row],[Частота выплаты]]=\"Ежегодно\",Расходы[[#This Row],[Сумма]]/12,IF(Расходы[[#This Row],[Частота выплаты]]=\"Раз в две недели\",Расходы[[#This Row],[Сумма]]*2,IF(Расходы[[#This Row],[Частота выплаты]]=\"Раз в два месяца\",Расходы[[#This Row],[Сумма]]/2,\"\"))))))),0),\"\"),\"\")","v":{"v":25,"d":"25 ₽"}},{"$f":"IF(Расходы[[#This Row],[Ежемесячная сумма]]<>\"\",Расходы[[#This Row],[Ежемесячная сумма]]/Приход,\"\")","v":{"v":0.00435691878703381,"d":"0%"}}]
[null,"Собачий корм","Разн.",{"v":60,"d":"60 ₽"},"Ежемесячно",{"$f":"IF(Расходы[[#This Row],[Сумма]]>0,IF(Расходы[[#This Row],[Частота выплаты]]<>\"\",ROUND(IF(Расходы[[#This Row],[Частота выплаты]]=\"Ежемесячно\",Расходы[Сумма],IF(Расходы[[#This Row],[Частота выплаты]]=\"Еженедельно\",Расходы[[#This Row],[Сумма]]*4,IF(Расходы[[#This Row],[Частота выплаты]]=\"Ежеквартально\",Расходы[[#This Row],[Сумма]]/3,IF(Расходы[[#This Row],[Частота выплаты]]=\"Каждые 6 месяцев\",Расходы[[#This Row],[Сумма]]/6,IF(Расходы[[#This Row],[Частота выплаты]]=\"Ежегодно\",Расходы[[#This Row],[Сумма]]/12,IF(Расходы[[#This Row],[Частота выплаты]]=\"Раз в две недели\",Расходы[[#This Row],[Сумма]]*2,IF(Расходы[[#This Row],[Частота выплаты]]=\"Раз в два месяца\",Расходы[[#This Row],[Сумма]]/2,\"\"))))))),0),\"\"),\"\")","v":{"v":60,"d":"60 ₽"}},{"$f":"IF(Расходы[[#This Row],[Ежемесячная сумма]]<>\"\",Расходы[[#This Row],[Ежемесячная сумма]]/Приход,\"\")","v":{"v":0.010456605088881143,"d":"1%"}}]
[null,"Страхование домашних животных","Разн.",{"v":70,"d":"70 ₽"},"Ежегодно",{"$f":"IF(Расходы[[#This Row],[Сумма]]>0,IF(Расходы[[#This Row],[Частота выплаты]]<>\"\",ROUND(IF(Расходы[[#This Row],[Частота выплаты]]=\"Ежемесячно\",Расходы[Сумма],IF(Расходы[[#This Row],[Частота выплаты]]=\"Еженедельно\",Расходы[[#This Row],[Сумма]]*4,IF(Расходы[[#This Row],[Частота выплаты]]=\"Ежеквартально\",Расходы[[#This Row],[Сумма]]/3,IF(Расходы[[#This Row],[Частота выплаты]]=\"Каждые 6 месяцев\",Расходы[[#This Row],[Сумма]]/6,IF(Расходы[[#This Row],[Частота выплаты]]=\"Ежегодно\",Расходы[[#This Row],[Сумма]]/12,IF(Расходы[[#This Row],[Частота выплаты]]=\"Раз в две недели\",Расходы[[#This Row],[Сумма]]*2,IF(Расходы[[#This Row],[Частота выплаты]]=\"Раз в два месяца\",Расходы[[#This Row],[Сумма]]/2,\"\"))))))),0),\"\"),\"\")","v":{"v":6,"d":"6 ₽"}},{"$f":"IF(Расходы[[#This Row],[Ежемесячная сумма]]<>\"\",Расходы[[#This Row],[Ежемесячная сумма]]/Приход,\"\")","v":{"v":1.0456605088881143E-3,"d":"0%"}}]
[null,"Продовольственные товары","Продукты",{"v":100,"d":"100 ₽"},"Еженедельно",{"$f":"IF(Расходы[[#This Row],[Сумма]]>0,IF(Расходы[[#This Row],[Частота выплаты]]<>\"\",ROUND(IF(Расходы[[#This Row],[Частота выплаты]]=\"Ежемесячно\",Расходы[Сумма],IF(Расходы[[#This Row],[Частота выплаты]]=\"Еженедельно\",Расходы[[#This Row],[Сумма]]*4,IF(Расходы[[#This Row],[Частота выплаты]]=\"Ежеквартально\",Расходы[[#This Row],[Сумма]]/3,IF(Расходы[[#This Row],[Частота выплаты]]=\"Каждые 6 месяцев\",Расходы[[#This Row],[Сумма]]/6,IF(Расходы[[#This Row],[Частота выплаты]]=\"Ежегодно\",Расходы[[#This Row],[Сумма]]/12,IF(Расходы[[#This Row],[Частота выплаты]]=\"Раз в две недели\",Расходы[[#This Row],[Сумма]]*2,IF(Расходы[[#This Row],[Частота выплаты]]=\"Раз в два месяца\",Расходы[[#This Row],[Сумма]]/2,\"\"))))))),0),\"\"),\"\")","v":{"v":400,"d":"400 ₽"}},{"$f":"IF(Расходы[[#This Row],[Ежемесячная сумма]]<>\"\",Расходы[[#This Row],[Ежемесячная сумма]]/Приход,\"\")","v":{"v":0.06971070059254096,"d":"7%"}}]
[null,"Кофе","Продукты",{"v":25,"d":"25 ₽"},"Еженедельно",{"$f":"IF(Расходы[[#This Row],[Сумма]]>0,IF(Расходы[[#This Row],[Частота выплаты]]<>\"\",ROUND(IF(Расходы[[#This Row],[Частота выплаты]]=\"Ежемесячно\",Расходы[Сумма],IF(Расходы[[#This Row],[Частота выплаты]]=\"Еженедельно\",Расходы[[#This Row],[Сумма]]*4,IF(Расходы[[#This Row],[Частота выплаты]]=\"Ежеквартально\",Расходы[[#This Row],[Сумма]]/3,IF(Расходы[[#This Row],[Частота выплаты]]=\"Каждые 6 месяцев\",Расходы[[#This Row],[Сумма]]/6,IF(Расходы[[#This Row],[Частота выплаты]]=\"Ежегодно\",Расходы[[#This Row],[Сумма]]/12,IF(Расходы[[#This Row],[Частота выплаты]]=\"Раз в две недели\",Расходы[[#This Row],[Сумма]]*2,IF(Расходы[[#This Row],[Частота выплаты]]=\"Раз в два месяца\",Расходы[[#This Row],[Сумма]]/2,\"\"))))))),0),\"\"),\"\")","v":{"v":100,"d":"100 ₽"}},{"$f":"IF(Расходы[[#This Row],[Ежемесячная сумма]]<>\"\",Расходы[[#This Row],[Ежемесячная сумма]]/Приход,\"\")","v":{"v":0.01742767514813524,"d":"2%"}}]
[null,"Альпинистское снаряжение","Развлечения",{"v":170,"d":"170 ₽"},"Ежегодно",{"$f":"IF(Расходы[[#This Row],[Сумма]]>0,IF(Расходы[[#This Row],[Частота выплаты]]<>\"\",ROUND(IF(Расходы[[#This Row],[Частота выплаты]]=\"Ежемесячно\",Расходы[Сумма],IF(Расходы[[#This Row],[Частота выплаты]]=\"Еженедельно\",Расходы[[#This Row],[Сумма]]*4,IF(Расходы[[#This Row],[Частота выплаты]]=\"Ежеквартально\",Расходы[[#This Row],[Сумма]]/3,IF(Расходы[[#This Row],[Частота выплаты]]=\"Каждые 6 месяцев\",Расходы[[#This Row],[Сумма]]/6,IF(Расходы[[#This Row],[Частота выплаты]]=\"Ежегодно\",Расходы[[#This Row],[Сумма]]/12,IF(Расходы[[#This Row],[Частота выплаты]]=\"Раз в две недели\",Расходы[[#This Row],[Сумма]]*2,IF(Расходы[[#This Row],[Частота выплаты]]=\"Раз в два месяца\",Расходы[[#This Row],[Сумма]]/2,\"\"))))))),0),\"\"),\"\")","v":{"v":14,"d":"14 ₽"}},{"$f":"IF(Расходы[[#This Row],[Ежемесячная сумма]]<>\"\",Расходы[[#This Row],[Ежемесячная сумма]]/Приход,\"\")","v":{"v":2.4398745207389336E-3,"d":"0%"}}]
[null,"Абонемент в спортзал","Разн.",{"v":60,"d":"60 ₽"},"Ежемесячно",{"$f":"IF(Расходы[[#This Row],[Сумма]]>0,IF(Расходы[[#This Row],[Частота выплаты]]<>\"\",ROUND(IF(Расходы[[#This Row],[Частота выплаты]]=\"Ежемесячно\",Расходы[Сумма],IF(Расходы[[#This Row],[Частота выплаты]]=\"Еженедельно\",Расходы[[#This Row],[Сумма]]*4,IF(Расходы[[#This Row],[Частота выплаты]]=\"Ежеквартально\",Расходы[[#This Row],[Сумма]]/3,IF(Расходы[[#This Row],[Частота выплаты]]=\"Каждые 6 месяцев\",Расходы[[#This Row],[Сумма]]/6,IF(Расходы[[#This Row],[Частота выплаты]]=\"Ежегодно\",Расходы[[#This Row],[Сумма]]/12,IF(Расходы[[#This Row],[Частота выплаты]]=\"Раз в две недели\",Расходы[[#This Row],[Сумма]]*2,IF(Расходы[[#This Row],[Частота выплаты]]=\"Раз в два месяца\",Расходы[[#This Row],[Сумма]]/2,\"\"))))))),0),\"\"),\"\")","v":{"v":60,"d":"60 ₽"}},{"$f":"IF(Расходы[[#This Row],[Ежемесячная сумма]]<>\"\",Расходы[[#This Row],[Ежемесячная сумма]]/Приход,\"\")","v":{"v":0.010456605088881143,"d":"1%"}}]
[null,"Наушники","Развлечения",{"v":50,"d":"50 ₽"},"Ежегодно",{"$f":"IF(Расходы[[#This Row],[Сумма]]>0,IF(Расходы[[#This Row],[Частота выплаты]]<>\"\",ROUND(IF(Расходы[[#This Row],[Частота выплаты]]=\"Ежемесячно\",Расходы[Сумма],IF(Расходы[[#This Row],[Частота выплаты]]=\"Еженедельно\",Расходы[[#This Row],[Сумма]]*4,IF(Расходы[[#This Row],[Частота выплаты]]=\"Ежеквартально\",Расходы[[#This Row],[Сумма]]/3,IF(Расходы[[#This Row],[Частота выплаты]]=\"Каждые 6 месяцев\",Расходы[[#This Row],[Сумма]]/6,IF(Расходы[[#This Row],[Частота выплаты]]=\"Ежегодно\",Расходы[[#This Row],[Сумма]]/12,IF(Расходы[[#This Row],[Частота выплаты]]=\"Раз в две недели\",Расходы[[#This Row],[Сумма]]*2,IF(Расходы[[#This Row],[Частота выплаты]]=\"Раз в два месяца\",Расходы[[#This Row],[Сумма]]/2,\"\"))))))),0),\"\"),\"\")","v":{"v":4,"d":"4 ₽"}},{"$f":"IF(Расходы[[#This Row],[Ежемесячная сумма]]<>\"\",Расходы[[#This Row],[Ежемесячная сумма]]/Приход,\"\")","v":{"v":6.9710700592540956E-4,"d":"0%"}}]
[null,"Стрижка","Разн.",{"v":70,"d":"70 ₽"},"Ежемесячно",{"$f":"IF(Расходы[[#This Row],[Сумма]]>0,IF(Расходы[[#This Row],[Частота выплаты]]<>\"\",ROUND(IF(Расходы[[#This Row],[Частота выплаты]]=\"Ежемесячно\",Расходы[Сумма],IF(Расходы[[#This Row],[Частота выплаты]]=\"Еженедельно\",Расходы[[#This Row],[Сумма]]*4,IF(Расходы[[#This Row],[Частота выплаты]]=\"Ежеквартально\",Расходы[[#This Row],[Сумма]]/3,IF(Расходы[[#This Row],[Частота выплаты]]=\"Каждые 6 месяцев\",Расходы[[#This Row],[Сумма]]/6,IF(Расходы[[#This Row],[Частота выплаты]]=\"Ежегодно\",Расходы[[#This Row],[Сумма]]/12,IF(Расходы[[#This Row],[Частота выплаты]]=\"Раз в две недели\",Расходы[[#This Row],[Сумма]]*2,IF(Расходы[[#This Row],[Частота выплаты]]=\"Раз в два месяца\",Расходы[[#This Row],[Сумма]]/2,\"\"))))))),0),\"\"),\"\")","v":{"v":70,"d":"70 ₽"}},{"$f":"IF(Расходы[[#This Row],[Ежемесячная сумма]]<>\"\",Расходы[[#This Row],[Ежемесячная сумма]]/Приход,\"\")","v":{"v":0.012199372603694667,"d":"1%"}}]
[null,"Видеоигры","Развлечения",{"v":100,"d":"100 ₽"},"Ежемесячно",{"$f":"IF(Расходы[[#This Row],[Сумма]]>0,IF(Расходы[[#This Row],[Частота выплаты]]<>\"\",ROUND(IF(Расходы[[#This Row],[Частота выплаты]]=\"Ежемесячно\",Расходы[Сумма],IF(Расходы[[#This Row],[Частота выплаты]]=\"Еженедельно\",Расходы[[#This Row],[Сумма]]*4,IF(Расходы[[#This Row],[Частота выплаты]]=\"Ежеквартально\",Расходы[[#This Row],[Сумма]]/3,IF(Расходы[[#This Row],[Частота выплаты]]=\"Каждые 6 месяцев\",Расходы[[#This Row],[Сумма]]/6,IF(Расходы[[#This Row],[Частота выплаты]]=\"Ежегодно\",Расходы[[#This Row],[Сумма]]/12,IF(Расходы[[#This Row],[Частота выплаты]]=\"Раз в две недели\",Расходы[[#This Row],[Сумма]]*2,IF(Расходы[[#This Row],[Частота выплаты]]=\"Раз в два месяца\",Расходы[[#This Row],[Сумма]]/2,\"\"))))))),0),\"\"),\"\")","v":{"v":100,"d":"100 ₽"}},{"$f":"IF(Расходы[[#This Row],[Ежемесячная сумма]]<>\"\",Расходы[[#This Row],[Ежемесячная сумма]]/Приход,\"\")","v":{"v":0.01742767514813524,"d":"2%"}}]
[null,"Одежда","Разн.",{"v":500,"d":"500 ₽"},"Ежегодно",{"$f":"IF(Расходы[[#This Row],[Сумма]]>0,IF(Расходы[[#This Row],[Частота выплаты]]<>\"\",ROUND(IF(Расходы[[#This Row],[Частота выплаты]]=\"Ежемесячно\",Расходы[Сумма],IF(Расходы[[#This Row],[Частота выплаты]]=\"Еженедельно\",Расходы[[#This Row],[Сумма]]*4,IF(Расходы[[#This Row],[Частота выплаты]]=\"Ежеквартально\",Расходы[[#This Row],[Сумма]]/3,IF(Расходы[[#This Row],[Частота выплаты]]=\"Каждые 6 месяцев\",Расходы[[#This Row],[Сумма]]/6,IF(Расходы[[#This Row],[Частота выплаты]]=\"Ежегодно\",Расходы[[#This Row],[Сумма]]/12,IF(Расходы[[#This Row],[Частота выплаты]]=\"Раз в две недели\",Расходы[[#This Row],[Сумма]]*2,IF(Расходы[[#This Row],[Частота выплаты]]=\"Раз в два месяца\",Расходы[[#This Row],[Сумма]]/2,\"\"))))))),0),\"\"),\"\")","v":{"v":42,"d":"42 ₽"}},{"$f":"IF(Расходы[[#This Row],[Ежемесячная сумма]]<>\"\",Расходы[[#This Row],[Ежемесячная сумма]]/Приход,\"\")","v":{"v":7.3196235622168E-3,"d":"1%"}}]

{"sheet":"Данные","index":2,"n_rows":10,"n_cols":5,"rows_kept":10,"hidden":true}
["Этот лист должен оставаться скрытым"]
["Категории","Сумма по категории","Процент от общей суммы","Частота","Экономия"]
["Дом",{"$f":"IF(SUMIF(Расходы[Категория],\"Дом\",Расходы[Ежемесячная сумма])>0,SUMIF(Расходы[Категория],\"Дом\",Расходы[Ежемесячная сумма]),NA())","v":{"v":1660,"d":"1,660 ₽"}},{"$f":"IF(B3>0,B3/Приход,\"\")","v":{"v":0.289299407459045,"d":"29%"}},"Еженедельно",{"$f":"Приход-SUM(Расходы[Ежемесячная сумма])","v":{"v":2777,"d":"2,777 ₽"}}]
["Развлечения",{"$f":"IF(SUMIF(Расходы[Категория],\"Развлечения\",Расходы[Ежемесячная сумма])>0,SUMIF(Расходы[Категория],\"Развлечения\",Расходы[Ежемесячная сумма]),NA())","v":{"v":188,"d":"188 ₽"}},{"$f":"IF(B4>0,B4/Приход,\"\")","v":{"v":0.03276402927849425,"d":"3%"}},"Ежемесячно"]
["Транспорт",{"$f":"IF(SUMIF(Расходы[Категория],\"Транспорт\",Расходы[Ежемесячная сумма])>0,SUMIF(Расходы[Категория],\"Транспорт\",Расходы[Ежемесячная сумма]),NA())","v":{"v":350,"d":"350 ₽"}},{"$f":"IF(B5>0,B5/Приход,\"\")","v":{"v":0.06099686301847333,"d":"6%"}},"Ежеквартально"]
["Продукты",{"$f":"IF(SUMIF(Расходы[Категория],\"Продукты\",Расходы[Ежемесячная сумма])>0,SUMIF(Расходы[Категория],\"Продукты\",Расходы[Ежемесячная сумма]),NA())","v":{"v":500,"d":"500 ₽"}},{"v":0.08713837574067619,"d":"9%"},"Каждые 6 месяцев"]
["Разн.",{"$f":"IF(SUMIF(Расходы[Категория],\"Разн.\",Расходы[Ежемесячная сумма])>0,SUMIF(Расходы[Категория],\"Разн.\",Расходы[Ежемесячная сумма]),NA())","v":{"v":263,"d":"263 ₽"}},{"v":0.04583478563959568,"d":"5%"},"Ежегодно"]
["Сбережения",{"$f":"IF(E3>0,E3,NA())","v":{"v":2777,"d":"2,777 ₽"}},{"v":0.4839665388637156,"d":"48%"},"Раз в две недели"]
[{"$nulls":3},"Раз в два месяца"]
[null,"ИТОГО:",{"$f":"SUM(C3:C8)","v":{"v":1,"d":"100%"}}]